Workbook

Sheet паспорт
A1: ПАТ "УКРТРАНСГАЗ" | G1: ПАСПОРТ ФІЗИКО-ХІМІЧНИХ ПОКАЗНИКІВ ПРИРОДНОГО ГАЗУ № 875
A2: Філія "УМГ "Черкаситрансгаз" | G2: переданого Кременчуцьким ЛВУМГ та прийнятого ПАТ "Кременчукгаз", ПП "Будінвест центр"
A3: Кременчуцьке ЛВУМГ | G3: Маршрут № 875
A4: Вимірювальна хіміко-аналітична лабораторія
A5: Кременчуцького промислового майданчика
A6: Свідоцтво № 0612 КФ від 30.12.15р. чинне до 20.06.19р. | J6: по газопроводу "Диканька-Кременчук-Кривий Ріг" | V6: за період з | X6: 2017-03-01 | Z6: по | AA6: 2017-03-31
A8: Число місяця | B8: Компонентний склад, % мол. | N8: Фізико-хімічні показники газу обчислені на основі компонентного складу, 101,325 кПа | X8: Температура точки роси за вологою (Р = 3.92 МПа), °С | Y8: Температура точки роси за вуглеводнями, °С | Z8: Вміст сірководню, г/м3 | AA8: Вміст меркаптанової сірки, г/м3 | AB8: Вміст механічних домішок, г/м3
N9: Густина абсолютна, кг/м3,при 20 °С, | O9: Температура вимірювання/згоряння при 20/25°С
B10: метан, С1 | C10: етан, С2 | D10: пропан, С3 | E10: ізо-бутан, і-С4 | F10: н-бутан, н-С4 | G10: нео-пентан, нео-С5 | H10: ізо-пентан, і-С5 | I10: н-пентан, н-С5 | J10: гексани та вищі, С6+ | K10: кисень, О2 | L10: азот, N2 | M10: діоксид вуглецю, CО2 | O10: Теплота згоряння нижча | R10: Теплота згоряння вища | U10: Число Воббе вище
O11: ккал/м³ | P11: МДж/м³ | Q11: кВт⋅год/м³ | R11: ккал/м³ | S11: МДж/м³ | T11: кВт⋅год/м³ | U11: ккал/м³ | V11: МДж/м³ | W11: кВт⋅год/м³
A12: 1 | O12: =P12*238.8459 -> 8242.572009 | P12: 34.51 | Q12: =P12/3.6 -> 9.586111111 | R12: =S12*238.8459 -> 9131.078757 | S12: 38.23 | T12: =S12/3.6 -> 10.61944444 | AC12: =SUM(B12:M12)+$K$43+$N$43 -> 0
A13: 2 | O13: =P13*238.8459 -> 8242.572009 | P13: 34.51 | Q13: 9.586111111 | R13: =S13*238.8459 -> 9131.078757 | S13: 38.23 | T13: 10.61944444 | AC13: 0
A14: 3 | O14: 8242.572009 | P14: 34.51 | Q14: 9.586111111 | R14: 9131.078757 | S14: 38.23 | T14: 10.61944444 | AC14: 0 | AD14: =IF(AC14=100,"ОК"," ") -> 
A15: 4 | O15: 8242.572009 | P15: 34.51 | Q15: 9.586111111 | R15: 9131.078757 | S15: 38.23 | T15: 10.61944444 | AC15: 0 | AD15: =IF(AC15=100,"ОК"," ") -> 
A16: 5 | O16: 8242.572009 | P16: 34.51 | Q16: 9.586111111 | R16: 9131.078757 | S16: 38.23 | T16: 10.61944444 | AC16: 0
A17: 6 | B17: 90.8853 | C17: 4.3305 | D17: 1.1952 | E17: 0.1292 | F17: 0.222 | G17: 0.0046 | H17: 0.0544 | I17: 0.0458 | J17: 0.0657 | K17: 0.0008 | L17: 1.3649 | M17: 1.7016 | N17: 0.7449 | O17: 8271.233517 | P17: 34.63 | Q17: 9.619444444 | R17: 9162.128724 | S17: 38.36 | T17: 10.65555556 | U17: 11649 | V17: 48.77 | W17: =V17/3.6 -> 13.54722222 | X17: -9.3 | AC17: 100 | AD17: ОК
A18: 7 | O18: 8271.233517 | P18: 34.63 | Q18: 9.619444444 | R18: 9162.128724 | S18: 38.36 | T18: 10.65555556 | AC18: 0
A19: 8 | O19: 8271.233517 | P19: 34.63 | Q19: 9.619444444 | R19: 9162.128724 | S19: 38.36 | T19: 10.65555556 | AC19: 0
A20: 9 | O20: 8271.233517 | P20: 34.63 | Q20: 9.619444444 | R20: 9162.128724 | S20: 38.36 | T20: 10.65555556 | AC20: 0
A21: 10 | O21: 8271.233517 | P21: 34.63 | Q21: =P21/3.6 -> 9.619444444 | R21: 9162.128724 | S21: 38.36 | T21: =S21/3.6 -> 10.65555556 | AC21: 0
A22: 11 | O22: 8271.233517 | P22: 34.63 | Q22: 9.619444444 | R22: 9162.128724 | S22: 38.36 | T22: 10.65555556 | AC22: 0
A23: 12 | O23: 8271.233517 | P23: 34.63 | Q23: 9.619444444 | R23: 9162.128724 | S23: 38.36 | T23: 10.65555556 | AC23: 0
A24: 13 | B24: 90.806 | C24: 4.3555 | D24: 1.1808 | E24: 0.1282 | F24: 0.2198 | G24: 0.0047 | H24: 0.054 | I24: 0.0451 | J24: 0.0589 | K24: 0.0011 | L24: 1.4133 | M24: 1.7326 | N24: 0.7452 | O24: 8261.679681 | P24: 34.59 | Q24: 9.608333333 | R24: 9150.186429 | S24: 38.31 | T24: 10.64166667 | U24: 11634 | V24: 48.71 | W24: =V24/3.6 -> 13.53055556 | X24: -9.3 | AC24: 100 | AD24: ОК
A25: 14 | O25: 8261.679681 | P25: 34.59 | Q25: 9.608333333 | R25: 9150.186429 | S25: 38.31 | T25: 10.64166667 | AC25: 0
A26: 15 | O26: 8261.679681 | P26: 34.59 | Q26: 9.608333333 | R26: 9150.186429 | S26: 38.31 | T26: 10.64166667 | AC26: 0
A27: 16 | O27: 8261.679681 | P27: 34.59 | Q27: =P27/3.6 -> 9.608333333 | R27: 9150.186429 | S27: 38.31 | T27: =S27/3.6 -> 10.64166667 | AC27: 0
A28: 17 | O28: 8261.679681 | P28: 34.59 | Q28: 9.608333333 | R28: 9150.186429 | S28: 38.31 | T28: 10.64166667 | AC28: 0
A29: 18 | O29: 8261.679681 | P29: 34.59 | Q29: 9.608333333 | R29: 9150.186429 | S29: 38.31 | T29: 10.64166667 | AC29: 0
A30: 19 | O30: 8261.679681 | P30: 34.59 | Q30: 9.608333333 | R30: 9150.186429 | S30: 38.31 | T30: 10.64166667 | AC30: 0
A31: 20 | B31: 90.9286 | C31: 4.3415 | D31: 1.1191 | E31: 0.124 | F31: 0.2083 | G31: 0.0046 | H31: 0.0527 | I31: 0.0431 | J31: 0.0527 | K31: 0.0011 | L31: 1.583 | M31: 1.5413 | N31: 0.7424 | O31: 8247.348927 | P31: 34.53 | Q31: 9.591666667 | R31: 9138.244134 | S31: 38.26 | T31: 10.62777778 | U31: 11638 | V31: 48.73 | W31: 13.53611111 | X31: -9.1 | AC31: 100 | AD31: =IF(AC31=100,"ОК"," ") -> ОК
A32: 21 | O32: 8247.348927 | P32: 34.53 | Q32: 9.591666667 | R32: 9138.244134 | S32: 38.26 | T32: 10.62777778 | AC32: 0
A33: 22 | O33: 8247.348927 | P33: 34.53 | Q33: 9.591666667 | R33: 9138.244134 | S33: 38.26 | T33: 10.62777778 | AC33: 0
A34: 23 | O34: 8247.348927 | P34: 34.53 | Q34: =P34/3.6 -> 9.591666667 | R34: 9138.244134 | S34: 38.26 | T34: =S34/3.6 -> 10.62777778 | AC34: 0 | AD34: =IF(AC34=100,"ОК"," ") -> 
A35: 24 | O35: 8247.348927 | P35: 34.53 | Q35: 9.591666667 | R35: 9138.244134 | S35: 38.26 | T35: 10.62777778 | AC35: 0
A36: 25 | O36: 8247.348927 | P36: 34.53 | Q36: 9.591666667 | R36: 9138.244134 | S36: 38.26 | T36: 10.62777778 | AC36: 0
A37: 26 | O37: 8247.348927 | P37: 34.53 | Q37: 9.591666667 | R37: 9138.244134 | S37: 38.26 | T37: =S37/3.6 -> 10.62777778 | AC37: 0
A38: 27 | B38: 90.7617 | C38: 4.3666 | D38: 1.2077 | E38: 0.1314 | F38: 0.232 | G38: 0.0046 | H38: 0.0577 | I38: 0.049 | J38: 0.0596 | K38: 0.0009 | L38: 1.3495 | M38: 1.7793 | N38: 0.7463 | O38: 8271.233517 | P38: 34.63 | Q38: 9.619444444 | R38: 9162.128724 | S38: 38.36 | T38: 10.65555556 | U38: 11640 | V38: 48.73 | W38: 13.53611111 | X38: -9.4 | Z38: 0.002 | AA38: 0.0023 | AB38: відсутні | AC38: 100 | AD38: ОК
A39: 28 | O39: 8271.233517 | P39: 34.63 | Q39: 9.619444444 | R39: 9162.128724 | S39: 38.36 | T39: 10.65555556 | AC39: 0
A40: 29 | O40: 8271.233517 | P40: 34.63 | Q40: =P40/3.6 -> 9.619444444 | R40: 9162.128724 | S40: 38.36 | T40: =S40/3.6 -> 10.65555556 | AC40: 0
A41: 30 | O41: 8271.233517 | P41: 34.63 | Q41: =P41/3.6 -> 9.619444444 | R41: 9162.128724 | S41: 38.36 | T41: =S41/3.6 -> 10.65555556 | AC41: 0
A42: 31 | O42: 8271.233517 | P42: 34.63 | Q42: =P42/3.6 -> 9.619444444 | R42: 9162.128724 | S42: 38.36 | T42: =S42/3.6 -> 10.65555556 | AC42: 0
A43: Рівень одоризації відповідає чинним нормативним документам | O43: =AVERAGE(O12:O42) -> 8259.060081 | P43: 34.57903226 | Q43: 9.605286738 | R43: 9149.030723 | S43: =38.3 -> 38.3 | T43: 10.64032258
H44: Середньозважене значення теплоти згоряння:
B46: Головний інженер Кременчуцького ЛВУМГ | N46: Грицик О. М. | Z46: 2017-04-03
C47: Підрозділу підприємства, якому підпорядкована лабораторія | M47: прізвище | V47: підпис | Z47: дата
B48: Інженер-лаборант ВХАЛ | N48: Голованова Ж. К. | Z48: 2017-04-03
C49: Лабораторія, де здійснювалось вимірювання газу | M49: прізвище | V49: підпис | Z49: дата
B50: Провідний економіст із збуту | N50: Кривулькін І. В. | Z50: 2017-04-03
C51: Підрозділу, відповідального за облік газу за маршрутом | M51: прізвище | V51: підпис | Z51: дата

Sheet додаток
A2: Додаток до Паспорту фізико-хімічних показників природного газу № 875
A4: Область | B4: ГРС, прямий споживач | C4: Cередньозважене значення вищої теплоти згоряння
C5: МДж/м³ | D5: ккал/м³ | E5: кВт*год./м³
A6: Полтавська область | B6: ГРС Комсомольськ лінія ГЗК | C6: 38.30369493 | D6: 9148.680488 | E6: 10.63991526
B7: ГРС Комсомольськ Місто | C7: 38.30353093 | D7: 9148.641319 | E7: 10.6398697
B8: ПП "Будінвест центр" | C8: 38.30750311 | D8: 9149.590057 | E8: 10.64097309
A9: Середньозважене значення вищої теплоти згоряння по маршруту № 875 | C9: 38.30369104 | D9: 9148.679561 | E9: 10.63991418
A13: Головний інженер Кременчуцького ЛВУМГ | D13: Грицик О. М. | F13: 2017-04-03
A14: Підрозділу підприємства, якому підпорядкована лабораторія | D14: прізвище | E14: підпис | F14: дата
A15: Інженер-лаборант ВХАЛ | D15: Голованова Ж. К. | F15: 2017-04-03
A16: Лабораторія, де здійснювалось вимірювання газу | D16: прізвище | E16: підпис | F16: дата
A17: Провідний економіст із збуту | D17: Кривулькін І. В. | F17: 2017-04-03
A18: Підрозділу, відповідального за облік газу за маршрутом | D18: прізвище | E18: підпис | F18: дата

Sheet variablesList (hidden)
A1: 3 | B1: x:\gaysin | C1: 10, 11, 24, 25, 127, 128, 132, 180, 207, 215 | D1: x:\
B2: x:\Illinci
B3: x:\Talne
